bitfinex-derivatives/quotes_BTCF0:USTF0_20251028
["timestamp","ask_amount","ask_price","bid_price","bid_amount"]
[1761688035916,0.40513,113230.0,113220.0,0.37178876]
[1761688036616,0.40513,113230.0,113220.0,0.37078876]
[1761688037416,0.04433,113230.0,113220.0,0.37078876]
[1761688038425,0.04433,113230.0,113220.0,0.36978876]
[1761688038623,0.04433,113230.0,113220.0,0.37178876]
[1761688039615,0.04433,113230.0,113220.0,0.37278876]
[1761688039815,0.40513,113230.0,113220.0,0.37278876]
[1761688040418,0.04433,113230.0,113220.0,0.37178876]
[1761688040618,0.40513,113230.0,113220.0,0.37178876]
[1761688041821,0.40513,113230.0,113220.0,0.36978876]
[1761688042026,0.41166,113230.0,113220.0,0.06117]
[1761688042218,0.54562,113230.0,113220.0,0.003]
[1761688042716,0.56886431,113230.0,113220.0,0.003]
[1761688043423,0.56886431,113230.0,113220.0,0.001]
[1761688043624,0.56886431,113230.0,113210.0,0.36525876]
[1761688043625,0.04357,113220.0,113210.0,0.36525876]
[1761688043923,0.40437,113220.0,113210.0,0.23133876]
[1761688044729,0.40437,113220.0,113210.0,0.23333876]
[1761688045726,0.40437,113220.0,113210.0,0.23633876]
[1761688047928,0.40437,113220.0,113210.0,0.0608]
[1761688048128,0.42765484,113220.0,113210.0,0.23633876]
[1761688050814,0.42765484,113220.0,113210.0,0.0608]
[1761688051019,0.43744484,113220.0,113210.0,0.04816]
[1761688051223,0.42765484,113220.0,113210.0,0.06078]
[1761688052124,0.43744484,113220.0,113210.0,0.005]
[1761688052719,0.43744484,113220.0,113210.0,0.0262]
[1761688053022,0.44008484,113220.0,113210.0,0.005]
[1761688053226,0.46387813,113220.0,113210.0,0.005]
[1761688054120,0.46123813,113220.0,113210.0,0.005]
[1761688058828,0.42765484,113220.0,113210.0,0.23852876]
[1761688059030,0.56157484,113220.0,113210.0,0.23852876]
[1761688061530,0.42765484,113220.0,113210.0,0.23852876]
[1761688061734,0.04451484,113220.0,113210.0,0.23852876]
[1761688061926,0.02328484,113220.0,113210.0,0.59932876]
[1761688062126,0.06837484,113220.0,113210.0,0.23852876]
[1761688063436,0.43570484,113220.0,113210.0,0.04926]
[1761688064023,0.07490484,113220.0,113210.0,0.22479876]
[1761688064223,0.06837484,113220.0,113210.0,0.06299]
[1761688064423,0.06837484,113220.0,113210.0,0.23852876]
[1761688074429,0.04509,113220.0,113210.0,0.23852876]
[1761688075741,0.06838961,113220.0,113210.0,0.23852876]
[1761688076240,0.04509,113220.0,113210.0,0.23852876]
[1761688079839,0.04509,113230.0,113220.0,0.05799]
[1761688080043,0.06830492,113230.0,113220.0,0.23352876]
[1761688080341,0.42910492,113230.0,113220.0,0.23352876]
[1761688080537,0.42910383,113230.0,113220.0,0.05799]
[1761688080744,0.06830383,113230.0,113220.0,0.05799]
[1761688080935,0.42910383,113230.0,113220.0,0.05799]
[1761688084544,0.42910383,113230.0,113220.0,0.23352876]
[1761688085745,0.06830383,113230.0,113220.0,0.96988876]
[1761688085945,0.04540383,113230.0,113220.0,0.96724876]
[1761688086847,0.06640383,113230.0,113220.0,0.96724876]
[1761688087946,0.02321383,113230.0,113220.0,0.96724876]
[1761688088247,0.06640383,113230.0,113220.0,0.96724876]
[1761688089550,0.04319,113230.0,113220.0,0.96724876]
[1761688090642,0.04319,113230.0,113220.0,0.36724876]
[1761688090943,0.04319,113230.0,113220.0,0.19171]
[1761688092349,0.0423,113230.0,113220.0,0.36724876]
[1761688092950,0.02116,113230.0,113220.0,0.36724876]
[1761688093347,0.02116,113230.0,113220.0,0.54281404]
[1761688093850,0.4031,113240.0,113230.0,0.05721]
[1761688094050,0.42616698,113240.0,113230.0,0.23276202]
[1761688096444,0.601719,113240.0,113230.0,0.05721]
[1761688097251,0.601719,113240.0,113230.0,0.23276202]
[1761688097553,0.42616698,113240.0,113230.0,0.23276202]
[1761688097743,0.601719,113240.0,113230.0,0.23276202]
[1761688098151,0.601719,113240.0,113230.0,0.05721]
[1761688099242,0.601719,113240.0,113230.0,0.04438]
[1761688099446,0.611509,113240.0,113230.0,0.04438]
[1761688100949,0.601719,113240.0,113230.0,0.05721]
[1761688101357,0.62553599,113240.0,113230.0,0.05721]
[1761688103245,0.62577883,113240.0,113230.0,0.05721]
[1761688103446,0.45022681,113240.0,113230.0,0.05721]
[1761688103752,0.62577883,113240.0,113230.0,0.05721]
[1761688106468,0.63556883,113240.0,113230.0,0.04438]
[1761688107259,0.45022681,113240.0,113230.0,0.04438]
[1761688107460,0.63556883,113240.0,113230.0,0.04438]
[1761688107660,0.63556883,113240.0,113230.0,0.05721]
[1761688108164,0.63556883,113240.0,113230.0,0.04438]
[1761688108671,0.81112085,113240.0,113230.0,0.02289]
[1761688109163,0.81112085,113240.0,113230.0,0.04438]
[1761688109358,0.81112085,113240.0,113230.0,0.02289]
[1761688109557,0.0423,113230.0,113220.0,0.05811]
[1761688109761,0.56011612,113230.0,113220.0,0.05811]
[1761688109958,0.0423,113220.0,113210.0,0.05811]
[1761688110271,0.6019587,113220.0,113210.0,0.23366202]
[1761688110474,0.42640668,113220.0,113210.0,0.23366202]
[1761688110872,0.42640668,113220.0,113210.0,0.05811]
[1761688111072,0.42640668,113220.0,113210.0,0.23366202]
[1761688111366,0.6084887,113220.0,113210.0,0.04638]
[1761688111562,0.43293668,113220.0,113210.0,0.22193202]
[1761688111763,0.6084887,113220.0,113210.0,0.22493202]
[1761688112072,0.6084887,113220.0,113210.0,0.04938]
[1761688112270,0.6084887,113220.0,113210.0,0.22493202]
[1761688112471,0.6084887,113220.0,113210.0,0.04938]
[1761688112672,0.6019587,113220.0,113210.0,0.06221]
[1761688114678,0.42640668,113220.0,113210.0,0.23776202]
[1761688114876,0.06560668,113220.0,113210.0,0.23776202]
[1761688117177,0.42640668,113220.0,113210.0,0.06221]
[1761688117373,0.42640668,113220.0,113210.0,0.23776202]
[1761688119281,0.6019587,113220.0,113210.0,0.23765202]
[1761688120084,0.6084887,113220.0,113210.0,0.23765202]
[1761688120380,0.6019587,113220.0,113210.0,0.23765202]
[1761688120584,0.42640668,113220.0,113210.0,0.23765202]
[1761688121781,0.6019587,113220.0,113210.0,0.23765202]
[1761688122483,0.42640668,113220.0,113210.0,0.23765202]
[1761688125488,0.42640668,113220.0,113210.0,0.0621]
[1761688125789,0.42640668,113220.0,113210.0,0.23765202]
[1761688127989,0.42640668,113220.0,113210.0,0.0621]
[1761688128188,0.42640668,113220.0,113210.0,0.23765202]
[1761688130685,0.06560668,113220.0,113210.0,0.23765202]
[1761688131788,0.42640668,113220.0,113210.0,0.0621]
[1761688131991,0.42640668,113220.0,113210.0,0.23765202]
[1761688134285,0.06560668,113220.0,113210.0,0.23765202]
[1761688137883,0.02330668,113220.0,113210.0,0.37137202]
[1761688138088,0.06744668,113220.0,113210.0,0.37137202]
[1761688140594,0.06744668,113220.0,113210.0,0.23765202]
[1761688141291,0.06744668,113220.0,113210.0,0.0621]
[1761688141490,0.06744668,113220.0,113210.0,0.23765202]
[1761688147787,0.06711668,113220.0,113210.0,0.23765202]
[1761688149194,0.04545668,113220.0,113210.0,0.23765202]
[1761688149401,0.02330668,113220.0,113210.0,0.23765202]
[1761688149696,0.06966668,113220.0,113210.0,0.23765202]
[1761688153391,0.06966668,113220.0,113210.0,0.23766986]
[1761688154798,0.02330668,113220.0,113210.0,0.23766986]
[1761688155698,0.04637668,113220.0,113210.0,0.23766986]
[1761688156203,0.02330668,113220.0,113210.0,0.23766986]
[1761688156900,0.06966668,113220.0,113210.0,0.23766986]
[1761688157102,0.06966668,113220.0,113210.0,0.0621]
[1761688157296,0.06966668,113220.0,113210.0,0.37134986]
[1761688162602,0.06966668,113220.0,113210.0,0.19578]
[1761688162800,0.06966668,113220.0,113210.0,0.37134986]
[1761688166007,0.06966668,113220.0,113210.0,0.41634986]
[1761688166506,0.06966668,113220.0,113210.0,0.24078]
[1761688166706,0.06966668,113220.0,113210.0,0.41634986]
[1761688167401,0.06966668,113220.0,113210.0,0.28266986]
[1761688167705,0.06966668,113220.0,113210.0,0.24078]
[1761688167901,0.06966668,113220.0,113210.0,0.05]
[1761688167902,0.07945668,113220.0,113210.0,0.05]
[1761688168210,0.07945668,113220.0,113210.0,0.09426]
[1761688168211,0.74946654,113220.0,113210.0,0.09426]
[1761688168400,0.56410668,113220.0,113210.0,0.10721]
[1761688182614,0.57389668,113220.0,113210.0,0.09426]
[1761688183114,0.56410668,113220.0,113210.0,0.10712]
[1761688184414,0.56410668,113220.0,113210.0,0.10713]
[1761688187715,0.74946654,113220.0,113210.0,0.07289]
[1761688187915,0.57389668,113220.0,113210.0,0.07188]
[1761688188415,0.57389668,113220.0,113210.0,0.09326]
[1761688188816,0.56410668,113220.0,113210.0,0.10612]
[1761688189419,0.57389668,113220.0,113210.0,0.07188]
[1761688189919,0.57389668,113220.0,113210.0,0.09326]
[1761688191016,0.57389668,113220.0,113210.0,0.07188]
[1761688191519,0.57389668,113220.0,113210.0,0.09326]
[1761688191916,0.74946654,113220.0,113210.0,0.09326]
[1761688194019,0.74946654,113220.0,113210.0,0.07188]
[1761688194926,0.74946654,113220.0,113210.0,0.09326]
[1761688196028,0.74946654,113220.0,113210.0,0.05]
[1761688196425,0.74946654,113220.0,113210.0,0.07188]
[1761688196625,0.74946654,113220.0,113210.0,0.09326]
[1761688198726,0.57389668,113220.0,113210.0,0.05]
[1761688199130,0.57389668,113220.0,113210.0,0.07188]
[1761688199928,0.74946654,113220.0,113210.0,0.07188]
[1761688200116,0.74946654,113220.0,113210.0,0.09326]
[1761688201924,0.57389668,113220.0,113210.0,0.07188]
[1761688202124,0.57389668,113220.0,113210.0,0.05]
[1761688202526,0.57389668,113220.0,113210.0,0.09326]
[1761688203534,0.74946654,113220.0,113210.0,0.09326]
[1761688205234,0.57389668,113220.0,113210.0,0.09326]
[1761688206131,0.56410668,113220.0,113210.0,0.10699]
[1761688208938,0.57389668,113220.0,113210.0,0.07188]
[1761688209136,0.57389668,113220.0,113210.0,0.09379]
[1761688209337,0.56410668,113220.0,113210.0,0.10679]
[1761688210540,0.57389668,113220.0,113210.0,0.09379]
[1761688212034,0.57389668,113220.0,113210.0,0.10679]
[1761688212035,0.56410668,113220.0,113210.0,0.10679]
[1761688212540,0.57389668,113220.0,113210.0,0.07188]
[1761688212742,0.57389668,113220.0,113210.0,0.05]
[1761688213247,0.74946654,113220.0,113210.0,0.05]
[1761688213445,0.94886709,113220.0,113210.0,0.05]
[1761688213642,0.95150709,113220.0,113210.0,0.05]
[1761688213838,0.04471,113210.0,113200.0,0.00010627]
[1761688214028,0.60767654,113210.0,113200.0,0.00010627]
[1761688214235,0.05124,113190.0,113180.0,0.04473]
[1761688214436,0.04471,113180.0,113170.0,0.05773]
[1761688214637,0.59086986,113180.0,113170.0,0.02282]
[1761688214837,0.04471,113170.0,113160.0,0.05773]
[1761688215138,0.53911,113170.0,113160.0,0.05773]
[1761688215344,0.71493657,113170.0,113160.0,0.05773]
[1761688215735,0.71822657,113170.0,113160.0,0.04473]
[1761688215938,0.04471,113160.0,113150.0,0.67396978]
[1761688216246,0.04471,113160.0,113150.0,0.59429223]
[1761688216844,0.04471,113160.0,113150.0,0.23349223]
[1761688217046,0.22047223,113160.0,113150.0,0.23349223]
[1761688217246,0.22047223,113160.0,113150.0,0.07973]
[1761688217445,0.59106223,113160.0,113150.0,0.06673]
[1761688217650,0.59106223,113160.0,113150.0,0.04982]
[1761688217952,0.6001131,113160.0,113150.0,0.027]
[1761688218651,0.6001131,113160.0,113150.0,0.04982]
[1761688218852,0.6001131,113160.0,113150.0,0.022]
[1761688219054,0.6001131,113160.0,113150.0,0.017]
[1761688219246,0.77587533,113160.0,113150.0,0.022]
[1761688219443,0.77587533,113160.0,113150.0,0.04482]
[1761688220350,0.02218,113160.0,113150.0,0.61629223]
[1761688220546,0.72382251,113170.0,113160.0,0.05773]
[1761688220762,0.72382251,113170.0,113160.0,0.23349223]
[1761688220946,0.72382251,113170.0,113160.0,0.05773]
[1761688222059,0.72382251,113170.0,113160.0,0.05973]
[1761688222354,0.72382251,113170.0,113160.0,0.06173]
[1761688223457,0.22942251,113170.0,113160.0,0.06173]
[1761688223650,0.36302251,113170.0,113160.0,0.06173]
[1761688224050,0.72382251,113170.0,113160.0,0.06173]
[1761688224248,0.36302251,113170.0,113160.0,0.06173]
[1761688225059,0.72382251,113170.0,113160.0,0.06173]
[1761688225650,0.36302251,113170.0,113160.0,0.06173]
[1761688226357,0.72382251,113170.0,113160.0,0.06173]
[1761688227647,0.72382251,113170.0,113160.0,0.04873]
[1761688227853,0.73361251,113170.0,113160.0,0.04873]
[1761688229470,0.73361251,113170.0,113160.0,0.004]
[1761688230071,0.73361251,113170.0,113160.0,0.02682]
[1761688230371,0.73361251,113170.0,113160.0,0.04873]
[1761688233074,0.54806028,113170.0,113160.0,0.06173]
[1761688233277,0.73361251,113170.0,113160.0,0.04873]
[1761688233478,0.73361251,113170.0,113160.0,0.02682]
[1761688235968,0.73361251,113170.0,113160.0,0.004]
[1761688236173,0.73361251,113170.0,113160.0,0.02624]
[1761688236779,0.73361251,113170.0,113160.0,0.004]
[1761688236976,0.73361251,113170.0,113160.0,0.02624]
[1761688237781,0.73361251,113170.0,113160.0,0.004]
[1761688237975,0.73361251,113170.0,113160.0,0.02624]
[1761688238170,0.55785028,113170.0,113160.0,0.004]
[1761688238470,0.73361251,113170.0,113160.0,0.004]
[1761688241372,0.73361251,113170.0,113160.0,0.04732]
[1761688242474,0.73361251,113170.0,113160.0,0.004]
[1761688243378,0.73361251,113170.0,113160.0,0.04732]
[1761688243883,0.73361251,113170.0,113160.0,0.02624]
[1761688244786,0.73361251,113170.0,113160.0,0.004]
[1761688244978,0.37281251,113170.0,113160.0,0.02624]
[1761688245178,0.73361251,113170.0,113160.0,0.02624]
[1761688245384,0.73361251,113170.0,113160.0,0.004]
[1761688247482,0.73361251,113170.0,113160.0,0.02624]
[1761688248083,0.73361251,113170.0,113160.0,0.004]
[1761688248579,0.73361251,113170.0,113160.0,0.04732]
[1761688250389,1.09441251,113170.0,113160.0,0.004]
[1761688251791,0.96081251,113170.0,113160.0,0.004]
[1761688251991,1.09441251,113170.0,113160.0,0.004]
[1761688252183,0.96081251,113170.0,113160.0,0.02624]
[1761688252386,1.09441251,113170.0,113160.0,0.004]
[1761688252883,1.09441251,113170.0,113160.0,0.02624]
[1761688253792,1.09441251,113170.0,113160.0,0.004]
[1761688254095,0.96081251,113170.0,113160.0,0.02624]
[1761688254593,1.09441251,113170.0,113160.0,0.02624]
[1761688254791,0.96081251,113170.0,113160.0,0.02624]
[1761688254995,1.09441251,113170.0,113160.0,0.02624]
[1761688255389,0.60001251,113170.0,113160.0,0.02624]
[1761688255590,0.73361251,113170.0,113160.0,0.02624]
[1761688255788,0.60001251,113170.0,113160.0,0.02624]
[1761688255989,0.73361251,113170.0,113160.0,0.02624]
[1761688256187,0.60001251,113170.0,113160.0,0.02624]
[1761688256390,0.78181711,113170.0,113160.0,0.02624]
[1761688257092,0.78181711,113170.0,113160.0,0.004]
[1761688257292,0.95757934,113170.0,113160.0,0.004]
[1761688257499,0.78181711,113170.0,113160.0,0.004]
[1761688257699,0.95757934,113170.0,113160.0,0.004]
[1761688257900,0.78181711,113170.0,113160.0,0.004]
[1761688258098,0.80181711,113170.0,113160.0,0.004]
[1761688258494,0.95757934,113170.0,113160.0,0.004]
[1761688258697,0.82397934,113170.0,113160.0,0.004]
[1761688258897,0.78181711,113170.0,113160.0,0.004]
[1761688259092,0.7580472,113170.0,113160.0,0.004]
[1761688259393,0.6244472,113170.0,113160.0,0.004]
[1761688259592,0.7580472,113170.0,113160.0,0.004]
[1761688260294,0.78181711,113170.0,113160.0,0.004]
[1761688261096,0.78181711,113170.0,113160.0,0.02624]
[1761688261404,0.78181711,113170.0,113160.0,0.04732]
[1761688261900,0.78181711,113170.0,113160.0,0.02624]
[1761688262106,0.78181711,113170.0,113160.0,0.004]
[1761688262607,0.78181711,113170.0,113160.0,0.02624]
[1761688262902,0.78181711,113170.0,113160.0,0.04732]
[1761688263098,0.78181711,113170.0,113160.0,0.02624]
[1761688263303,0.78181711,113170.0,113160.0,0.004]
[1761688263605,0.78181711,113170.0,113160.0,0.02624]
[1761688263906,0.78181711,113170.0,113160.0,0.04863]
[1761688264109,0.7580472,113170.0,113160.0,0.04863]
[1761688264601,0.78181711,113170.0,113160.0,0.004]
[1761688264906,0.7580472,113170.0,113160.0,0.004]
[1761688265897,0.78181711,113170.0,113160.0,0.004]
[1761688266299,0.7580472,113170.0,113160.0,0.004]
[1761688268908,0.7580472,113170.0,113160.0,0.02616]
[1761688269105,0.7580472,113170.0,113160.0,0.04876]
[1761688269505,0.7580472,113170.0,113160.0,0.02616]
[1761688269899,0.7580472,113170.0,113160.0,0.027]
[1761688270106,0.7580472,113170.0,113160.0,0.0496]
[1761688271404,0.7580472,113170.0,113160.0,0.004]
[1761688272511,0.93380943,113170.0,113160.0,0.004]
[1761688273715,0.7580472,113170.0,113160.0,0.0496]
[1761688274215,0.93380943,113170.0,113160.0,0.0496]
[1761688274813,0.93380943,113170.0,113160.0,0.004]
[1761688275214,0.93380943,113170.0,113160.0,0.027]
[1761688275408,0.93380943,113170.0,113160.0,0.004]
[1761688275809,0.58228497,113170.0,113160.0,0.004]
[1761688276314,0.95757934,113170.0,113160.0,0.004]
[1761688277415,0.78186204,113170.0,113160.0,0.004]
[1761688278814,1.14266204,113170.0,113160.0,0.004]
[1761688279116,1.16266204,113170.0,113160.0,0.004]
[1761688279604,1.14266204,113170.0,113160.0,0.004]
[1761688280518,1.14266204,113170.0,113160.0,0.027]
[1761688280717,1.14266204,113170.0,113160.0,0.004]
[1761688281017,0.42106204,113170.0,113160.0,0.004]
[1761688281216,1.14266204,113170.0,113160.0,0.004]
[1761688281719,1.14266204,113170.0,113160.0,0.027]
[1761688282519,1.14266204,113170.0,113160.0,0.004]
[1761688283015,1.14266204,113170.0,113160.0,0.027]
[1761688283521,1.15266204,113170.0,113160.0,0.004]
[1761688284219,1.18444964,113170.0,113160.0,0.004]
[1761688285216,0.04522,113150.0,113140.0,0.0586]
[1761688285513,0.73990094,113150.0,113140.0,0.0586]
[1761688285715,0.73990094,113150.0,113140.0,0.0456]
[1761688285919,0.74643094,113150.0,113140.0,0.0456]
[1761688286115,0.7702687,113150.0,113140.0,0.0456]
[1761688286513,0.7702687,113150.0,113140.0,0.005]
[1761688287517,0.7702687,113150.0,113140.0,0.0506]
[1761688287518,0.59446154,113150.0,113140.0,0.0506]
[1761688287820,0.7702687,113150.0,113140.0,0.005]
[1761688288122,0.7702687,113150.0,113140.0,0.023]
[1761688288324,0.6367087,113150.0,113140.0,0.023]
[1761688288621,0.7637387,113150.0,113140.0,0.0817]
[1761688289024,0.7702687,113150.0,113140.0,0.0686]
[1761688291827,0.7712687,113150.0,113140.0,0.0636]
[1761688292033,0.7732687,113150.0,113140.0,0.0456]
[1761688292218,0.7732687,113150.0,113130.0,0.01449428]
[1761688292526,0.58182716,113140.0,113130.0,0.06009428]
[1761688292724,0.60626185,113140.0,113130.0,0.06009428]
[1761688293329,0.61605185,113140.0,113130.0,0.00149428]
[1761688293719,0.61605185,113140.0,113130.0,0.04670428]
[1761688294228,0.61805185,113140.0,113130.0,0.04670428]
[1761688294830,0.64188961,113140.0,113130.0,0.04672428]
[1761688295018,0.64288961,113140.0,113130.0,0.04672428]
[1761688295427,0.64288961,113140.0,113130.0,0.00149428]
[1761688296127,0.67467721,113140.0,113130.0,0.00149428]
[1761688296331,0.64288961,113140.0,113130.0,0.00149428]
[1761688296931,0.64296516,113140.0,113130.0,0.00149428]
[1761688297124,0.64560516,113140.0,113130.0,0.00149428]
[1761688297429,0.71707044,113140.0,113130.0,0.00149428]
[1761688297821,0.71443044,113140.0,113130.0,0.00149428]
[1761688298314,0.8902376,113140.0,113130.0,0.00149428]
[1761688298929,0.04371,113120.0,113110.0,0.05841647]
[1761688299130,0.7139459,113120.0,113110.0,0.05841647]
[1761688299523,0.7172359,113120.0,113110.0,0.04531647]
[1761688299832,0.72593998,113120.0,113110.0,0.04531647]
[1761688300328,0.72593998,113120.0,113110.0,0.06631647]
[1761688301130,0.75083967,113120.0,113110.0,0.02108647]
[1761688301934,0.75083967,113120.0,113110.0,0.06631647]
[1761688302128,0.75083967,113120.0,113110.0,0.04410647]
[1761688302437,0.75083967,113120.0,113110.0,0.02108647]
[1761688302926,0.75083967,113120.0,113110.0,0.06631647]
[1761688303123,1.11163967,113120.0,113110.0,0.02108647]
[1761688303316,0.97807967,113120.0,113110.0,0.02108647]
[1761688303517,1.11163967,113120.0,113110.0,0.06631647]
[1761688303926,0.97478967,113120.0,113110.0,0.08012647]
[1761688304132,1.10834967,113120.0,113110.0,0.08012647]
[1761688305133,0.97478967,113120.0,113110.0,0.08012647]
[1761688305337,1.10834967,113120.0,113110.0,0.08012647]
[1761688305934,1.11163967,113120.0,113110.0,0.06631647]
[1761688307038,0.97807967,113120.0,113110.0,0.06631647]
[1761688307231,0.97807967,113120.0,113110.0,0.04410647]
[1761688307436,1.11163967,113120.0,113110.0,0.02108647]
[1761688307630,1.11163967,113120.0,113110.0,0.04410647]
[1761688307936,1.11163967,113120.0,113110.0,0.06631647]
[1761688308237,0.97807967,113120.0,113110.0,0.06631647]
[1761688308532,1.11163967,113120.0,113110.0,0.06631647]
[1761688308721,1.10834967,113120.0,113110.0,0.08012647]
[1761688310131,1.11163967,113120.0,113110.0,0.08012647]
[1761688310331,1.10834967,113120.0,113110.0,0.08012647]
[1761688311929,1.11163967,113120.0,113110.0,0.06631647]
[1761688312129,1.11163967,113120.0,113110.0,0.08012647]
[1761688312130,1.10834967,113120.0,113110.0,0.08012647]
[1761688312335,1.11163967,113120.0,113110.0,0.06631647]
[1761688313338,1.10834967,113120.0,113110.0,0.08012647]
[1761688314742,1.11163967,113120.0,113110.0,0.06631647]
[1761688315537,0.93254251,113120.0,113110.0,0.08012647]
[1761688315839,1.10834967,113120.0,113110.0,0.08012647]
[1761688316739,1.11163967,113120.0,113110.0,0.06631647]
[1761688317736,1.11163967,113120.0,113110.0,0.02108647]
[1761688317937,1.11163967,113120.0,113110.0,0.06631647]
[1761688318140,1.11165989,113120.0,113110.0,0.06631647]
[1761688320441,0.93256273,113120.0,113110.0,0.08012647]
[1761688320642,1.11165989,113120.0,113110.0,0.08012647]
[1761688320832,1.11165989,113120.0,113110.0,0.06631647]
[1761688321931,1.11165989,113120.0,113110.0,0.02108647]
[1761688322241,1.13548429,113120.0,113110.0,0.02108647]
[1761688322441,1.13548429,113120.0,113110.0,0.04410647]
[1761688322741,1.13548429,113120.0,113110.0,0.02108647]
[1761688323342,1.13548429,113120.0,113110.0,0.06631647]
[1761688323836,1.13548429,113120.0,113110.0,0.05131647]
[1761688324443,1.13548429,113120.0,113110.0,0.02610647]
[1761688324944,1.13548429,113120.0,113110.0,0.04866647]
[1761688325141,1.10836989,113120.0,113110.0,0.06202647]
[1761688329841,1.14015749,113120.0,113110.0,0.06202647]
[1761688330040,1.10836989,113120.0,113110.0,0.06202647]
[1761688332342,1.13550803,113120.0,113110.0,0.04866647]
[1761688332942,1.13221803,113120.0,113110.0,0.06197647]
[1761688335246,0.95641087,113120.0,113110.0,0.06197647]
[1761688335446,1.13221803,113120.0,113110.0,0.06197647]
[1761688337452,1.30831105,113120.0,113110.0,0.06197647]
[1761688337650,1.31160105,113120.0,113110.0,0.04866647]
[1761688339653,1.31145914,113120.0,113110.0,0.04866647]
[1761688340155,1.31145914,113120.0,113110.0,0.00308647]
[1761688340453,1.31145914,113120.0,113110.0,0.04727647]
[1761688341654,1.31145914,113120.0,113110.0,0.00308647]
[1761688342045,1.31145914,113120.0,113110.0,0.04727647]
[1761688343553,0.95626896,113120.0,113110.0,0.06058647]
[1761688343747,1.30816914,113120.0,113110.0,0.06058647]
[1761688343954,1.31145914,113120.0,113110.0,0.04727647]
[1761688345055,1.30816914,113120.0,113110.0,0.06058647]
[1761688345258,1.31145914,113120.0,113110.0,0.00308647]
[1761688346752,1.31145914,113120.0,113110.0,0.02468647]
[1761688347160,1.31145914,113120.0,113110.0,0.04727647]
[1761688351760,1.31145914,113120.0,113110.0,0.02468647]
[1761688352059,1.31145914,113120.0,113110.0,0.00308647]
[1761688353059,0.95955896,113120.0,113110.0,0.04727647]
[1761688353261,1.31145914,113120.0,113110.0,0.00308647]
[1761688354758,1.31145914,113120.0,113110.0,0.02441647]
[1761688355459,1.31145914,113120.0,113110.0,0.04576647]
[1761688357160,1.31940879,113120.0,113110.0,0.04576647]
[1761688359059,1.31940879,113120.0,113110.0,0.02441647]
[1761688359256,1.31940879,113120.0,113110.0,0.04576647]
[1761688363666,1.28762119,113120.0,113110.0,0.04576647]
[1761688367060,0.93572101,113120.0,113110.0,0.04576647]
[1761688367262,1.28762119,113120.0,113110.0,0.04576647]
[1761688371465,1.15406119,113120.0,113110.0,0.05898647]
[1761688371660,1.259463,113120.0,113110.0,0.05898647]
[1761688371866,1.28424027,113120.0,113110.0,0.05898647]
[1761688372070,1.30811693,113120.0,113110.0,0.05898647]
[1761688374867,0.95621675,113120.0,113110.0,0.05898647]
[1761688375165,1.30811693,113120.0,113110.0,0.05898647]
[1761688377355,1.28424027,113120.0,113110.0,0.05898647]
[1761688379968,0.56264027,113120.0,113110.0,0.05898647]
[1761688380160,0.92344027,113120.0,113110.0,0.05898647]
[1761688383474,0.92673027,113120.0,113110.0,0.04576647]
[1761688383874,0.92344027,113120.0,113110.0,0.05837647]
[1761688384675,0.78996027,113120.0,113110.0,0.05837647]
[1761688384974,0.92344027,113120.0,113110.0,0.05837647]
[1761688385868,0.94731598,113120.0,113110.0,0.05837647]
[1761688388476,0.95060598,113120.0,113110.0,0.02441647]
[1761688388676,0.95060598,113120.0,113110.0,0.04609647]
[1761688391982,0.95851787,113120.0,113110.0,0.04609647]
[1761688392183,0.60661769,113120.0,113110.0,0.04609647]
[1761688392481,0.95851787,113120.0,113110.0,0.04609647]
[1761688393583,0.96151787,113120.0,113110.0,0.04309647]
[1761688396078,0.95822787,113120.0,113110.0,0.05678647]
[1761688396690,1.31902787,113120.0,113110.0,0.05678647]
[1761688397394,1.14307291,113120.0,113110.0,0.05678647]
[1761688397694,0.96712769,113120.0,113110.0,0.05678647]
[1761688397895,1.14307291,113120.0,113110.0,0.05678647]
[1761688400590,1.14636291,113120.0,113110.0,0.04309647]
[1761688401294,1.14618137,113120.0,113110.0,0.04309647]
[1761688405393,1.14289137,113120.0,113110.0,0.05678647]
[1761688408096,1.14289137,113120.0,113110.0,0.04309647]
[1761688408291,1.14618137,113120.0,113110.0,0.04309647]
[1761688411301,0.42458137,113120.0,113110.0,0.04309647]
[1761688411494,0.78538137,113120.0,113110.0,0.04309647]
[1761688411689,0.78538137,113120.0,113110.0,0.02141647]
[1761688411895,0.78538137,113120.0,113110.0,8.647e-05]
[1761688412097,0.78538137,113120.0,113110.0,0.04377647]
[1761688417504,0.78538137,113120.0,113110.0,8.647e-05]
[1761688418205,0.78538137,113120.0,113110.0,0.02178647]
[1761688419206,0.78538137,113120.0,113110.0,8.647e-05]
[1761688421606,0.78538137,113120.0,113110.0,0.02178647]
[1761688421808,0.78538137,113120.0,113110.0,0.04476647]
[1761688422007,0.78538137,113120.0,113110.0,8.647e-05]
[1761688424110,0.78538137,113120.0,113110.0,0.02178647]
[1761688424307,0.78538137,113120.0,113110.0,8.647e-05]
[1761688430005,0.78538137,113120.0,113110.0,0.02178647]
[1761688431614,0.78538137,113120.0,113110.0,0.04476647]
[1761688437020,0.78338137,113120.0,113110.0,0.04476647]
[1761688437216,0.78538137,113120.0,113110.0,0.04476647]
[1761688438320,1.14618137,113120.0,113110.0,0.04476647]
[1761688438820,1.14618137,113120.0,113110.0,0.05860647]
[1761688439122,1.14418137,113120.0,113110.0,0.04476647]
[1761688439314,1.14618137,113120.0,113110.0,0.04476647]
[1761688439916,1.14289137,113120.0,113110.0,0.05860647]
[1761688441525,1.14289137,113120.0,113110.0,0.03562647]
[1761688441819,1.14618137,113120.0,113110.0,0.04476647]
[1761688444130,1.14618137,113120.0,113110.0,0.02178647]
[1761688445329,1.14618137,113120.0,113110.0,0.04301647]
[1761688445922,1.17005579,113120.0,113110.0,0.04301647]
[1761688446327,1.17005579,113120.0,113110.0,8.647e-05]
[1761688446530,1.14618137,113120.0,113110.0,8.647e-05]
[1761688453036,1.14618137,113120.0,113110.0,0.02265647]
[1761688454543,1.14618137,113120.0,113110.0,8.647e-05]
[1761688459542,1.32219249,113120.0,113110.0,8.647e-05]
[1761688462346,0.60059249,113120.0,113110.0,8.647e-05]
[1761688462540,1.32219249,113120.0,113110.0,8.647e-05]
[1761688466447,0.60059249,113120.0,113110.0,8.647e-05]
[1761688466638,1.32219249,113120.0,113110.0,8.647e-05]
[1761688466944,1.18542249,113120.0,113110.0,0.04366647]
[1761688467146,1.31878249,113120.0,113110.0,0.04366647]
[1761688467546,0.96682615,113120.0,113110.0,0.05631647]
[1761688467749,1.31878249,113120.0,113110.0,0.05631647]
[1761688468447,1.32207249,113120.0,113110.0,0.04366647]